[Event "*** SCC Grand Prix: Titled Tuesday Blitz"]
[Site "Chess.com"]
[Date "2020.07.14"]
[Round "7"]
[White "Sibelephant"]
[Black "ChessWarrior7197"]
[Result "0-1"]
[WhiteElo "3117"]
[BlackElo "2868"]
[TimeControl "180+1"]
[EndTime "11:19:01 PDT"]
[Termination "ChessWarrior7197 won by resignation"]

1. Nf3 {[%clk 0:02:59.8]} 1... Nf6 {[%clk 0:02:59.1]} 2. b3 {[%clk 0:02:59.5]}
2... e6 {[%clk 0:02:55.8]} 3. Bb2 {[%clk 0:02:59.7]} 3... d5 {[%clk 0:02:55.7]}
4. e3 {[%clk 0:02:59.7]} 4... b6 {[%clk 0:02:55.7]} 5. c4 {[%clk 0:02:57.3]}
5... Bb7 {[%clk 0:02:55.1]} 6. cxd5 {[%clk 0:02:53.2]} 6... exd5 {[%clk
0:02:56]} 7. Nc3 {[%clk 0:02:48.5]} 7... a6 {[%clk 0:02:54.1]} 8. d4 {[%clk
0:02:38.9]} 8... Bd6 {[%clk 0:02:53.9]} 9. g3 {[%clk 0:02:39.2]} 9... Nbd7
{[%clk 0:02:53.2]} 10. Bg2 {[%clk 0:02:39.4]} 10... O-O {[%clk 0:02:54.1]} 11.
O-O {[%clk 0:02:39.6]} 11... Qe7 {[%clk 0:02:53.4]} 12. Rc1 {[%clk 0:02:39.7]}
12... Rac8 {[%clk 0:02:46.9]} 13. Ne2 {[%clk 0:02:39.2]} 13... Ne4 {[%clk
0:02:45.3]} 14. Nf4 {[%clk 0:02:38.8]} 14... Rfd8 {[%clk 0:02:41]} 15. Re1
{[%clk 0:02:36.5]} 15... Ndf6 {[%clk 0:02:39.1]} 16. Ne5 {[%clk 0:02:29.5]}
16... c5 {[%clk 0:02:34.8]} 17. Ng4 {[%clk 0:02:29.2]} 17... c4 {[%clk
0:02:30.4]} 18. Nxf6+ {[%clk 0:02:13.4]} 18... Nxf6 {[%clk 0:02:31.3]} 19. bxc4
{[%clk 0:02:00.2]} 19... dxc4 {[%clk 0:02:32.2]} 20. d5 {[%clk 0:01:51.4]} 20...
Bb4 {[%clk 0:02:14.7]} 21. e4 {[%clk 0:01:26.5]} 21... c3 {[%clk 0:02:10.2]} 22.
Ba1 {[%clk 0:01:24.6]} 22... c2 {[%clk 0:02:10.6]} 23. Qe2 {[%clk 0:01:18.1]}
23... Bxe1 {[%clk 0:02:10.5]} 24. Qxe1 {[%clk 0:01:18.5]} 24... Nxd5 {[%clk
0:02:09.7]} 25. Nh5 {[%clk 0:01:16.3]} 25... f6 {[%clk 0:01:58.9]} 26. a3 {[%clk
0:01:11.8]} 26... g6 {[%clk 0:01:53.2]} 27. Bh3 {[%clk 0:00:32.9]} 27... Rc7
{[%clk 0:01:52.8]} 28. exd5 {[%clk 0:00:14]} 28... Qxe1+ {[%clk 0:01:52.5]} 29.
Rxe1 {[%clk 0:00:14.6]} 29... c1=Q {[%clk 0:01:52.3]} 30. Nxf6+ {[%clk
0:00:15.1]} 30... Kf8 {[%clk 0:01:49.2]} 31. Nxh7+ {[%clk 0:00:11]} 31... Kg8
{[%clk 0:01:25.6]} 32. Nf6+ {[%clk 0:00:09.5]} 32... Kf7 {[%clk 0:01:21.8]} 33.
Be6+ {[%clk 0:00:08.2]} 33... Ke7 {[%clk 0:01:18]} 34. d6+ {[%clk 0:00:05.2]}
34... Rxd6 {[%clk 0:01:15.6]} 35. Ng8+ {[%clk 0:00:02.1]} 35... Kf8 {[%clk
0:01:15.7]} 0-1

[Event "*** SCC Grand Prix: Titled Tuesday Blitz"]
[Site "Chess.com"]
[Date "2020.07.14"]
[Round "7"]
[White "Kaua18"]
[Black "elohunter1999"]
[Result "0-1"]
[WhiteElo "2285"]
[BlackElo "2463"]
[TimeControl "180+1"]
[EndTime "11:19:01 PDT"]
[Termination "elohunter1999 won by resignation"]

1. e4 {[%clk 0:03:00.9]} 1... e5 {[%clk 0:02:59.5]} 2. Nf3 {[%clk 0:03:00.2]}
2... Nc6 {[%clk 0:02:59.5]} 3. d4 {[%clk 0:02:54.4]} 3... exd4 {[%clk
0:02:59.2]} 4. Bc4 {[%clk 0:02:54.4]} 4... Nf6 {[%clk 0:02:58.1]} 5. e5 {[%clk
0:02:54.6]} 5... d5 {[%clk 0:02:51.6]} 6. Bb5 {[%clk 0:02:54.4]} 6... Ne4 {[%clk
0:02:51.6]} 7. Nxd4 {[%clk 0:02:53.6]} 7... Bd7 {[%clk 0:02:43.2]} 8. Bxc6
{[%clk 0:02:53.4]} 8... bxc6 {[%clk 0:02:42.1]} 9. O-O {[%clk 0:02:54]} 9... Bc5
{[%clk 0:02:41.2]} 10. f3 {[%clk 0:02:52.8]} 10... Ng5 {[%clk 0:02:40.6]} 11.
Be3 {[%clk 0:02:52.5]} 11... Bb6 {[%clk 0:02:39.6]} 12. f4 {[%clk 0:02:51.3]}
12... Ne4 {[%clk 0:02:39.3]} 13. Nd2 {[%clk 0:02:50.7]} 13... Nxd2 {[%clk
0:02:38.3]} 14. Qxd2 {[%clk 0:02:51.6]} 14... O-O {[%clk 0:02:38.6]} 15. Nb3
{[%clk 0:02:50.2]} 15... f6 {[%clk 0:02:03.8]} 16. a4 {[%clk 0:02:39.3]} 16...
fxe5 {[%clk 0:01:56.9]} 17. fxe5 {[%clk 0:02:37]} 17... Qg5 {[%clk 0:01:54.4]}
18. Rae1 {[%clk 0:01:30.6]} 18... Rxf1+ {[%clk 0:01:46.3]} 19. Kxf1 {[%clk
0:01:30.2]} 19... Rf8+ {[%clk 0:01:34.8]} 20. Kg1 {[%clk 0:01:29.5]} 20... a5
{[%clk 0:01:14.9]} 21. e6 {[%clk 0:01:06.2]} 21... Bc8 {[%clk 0:01:01.3]} 22.
Nxa5 {[%clk 0:00:48.9]} 22... Rf3 {[%clk 0:00:42]} 23. e7 {[%clk 0:00:13.4]}
23... Rxe3 {[%clk 0:00:36.9]} 24. e8=Q+ {[%clk 0:00:11.6]} 24... Rxe8+ {[%clk
0:00:36.2]} 25. Kh1 {[%clk 0:00:09.2]} 25... Qxd2 {[%clk 0:00:34.4]} 26. Rxe8+
{[%clk 0:00:09.1]} 26... Kf7 {[%clk 0:00:34.3]} 0-1

[Event "*** SCC Grand Prix: Titled Tuesday Blitz"]
[Site "Chess.com"]
[Date "2020.07.14"]
[Round "7"]
[White "LastHeroJr"]
[Black "QuintilianoR"]
[Result "0-1"]
[WhiteElo "2462"]
[BlackElo "2651"]
[TimeControl "180+1"]
[EndTime "11:19:08 PDT"]
[Termination "QuintilianoR won on time"]

1. e4 {[%clk 0:03:00.5]} 1... c5 {[%clk 0:03:00]} 2. Nf3 {[%clk 0:03:00.2]} 2...
d6 {[%clk 0:03:00.5]} 3. Bb5+ {[%clk 0:02:58.8]} 3... Nd7 {[%clk 0:03:00.1]} 4.
O-O {[%clk 0:02:56.3]} 4... a6 {[%clk 0:02:59.6]} 5. Bd3 {[%clk 0:02:54.5]} 5...
Ngf6 {[%clk 0:02:59.7]} 6. Re1 {[%clk 0:02:49.6]} 6... e6 {[%clk 0:02:59.7]} 7.
c3 {[%clk 0:02:49.1]} 7... b5 {[%clk 0:02:59.6]} 8. Bc2 {[%clk 0:02:38.2]} 8...
Bb7 {[%clk 0:02:58.6]} 9. d4 {[%clk 0:02:36.9]} 9... Be7 {[%clk 0:02:58.1]} 10.
Nbd2 {[%clk 0:02:32.5]} 10... Qc7 {[%clk 0:02:50]} 11. Nf1 {[%clk 0:02:30.1]}
11... O-O {[%clk 0:02:42.6]} 12. Ng3 {[%clk 0:02:29.5]} 12... Rfe8 {[%clk
0:02:39.5]} 13. h3 {[%clk 0:02:24.3]} 13... Bf8 {[%clk 0:02:30.4]} 14. Be3
{[%clk 0:02:22]} 14... e5 {[%clk 0:02:29.4]} 15. dxc5 {[%clk 0:02:01.4]} 15...
Nxc5 {[%clk 0:02:25.2]} 16. Bg5 {[%clk 0:01:55.6]} 16... Nfd7 {[%clk 0:02:18.1]}
17. Qe2 {[%clk 0:01:30.3]} 17... g6 {[%clk 0:01:50.5]} 18. Rad1 {[%clk
0:01:27.9]} 18... Ne6 {[%clk 0:01:42.5]} 19. Bc1 {[%clk 0:01:26.2]} 19... Nf4
{[%clk 0:01:42.1]} 20. Qf1 {[%clk 0:01:15.6]} 20... d5 {[%clk 0:01:39.8]} 21.
exd5 {[%clk 0:01:06.3]} 21... Bxd5 {[%clk 0:01:37.3]} 22. Be4 {[%clk 0:01:01.6]}
22... Bc4 {[%clk 0:01:34]} 23. Rxd7 {[%clk 0:00:10.1]} 23... Qxd7 {[%clk
0:01:31.8]} 24. Rd1 {[%clk 0:00:10.6]} 24... Qc7 {[%clk 0:01:25.3]} 25. Qe1
{[%clk 0:00:10.8]} 25... Rad8 {[%clk 0:01:23.7]} 26. Rxd8 {[%clk 0:00:07]} 26...
Rxd8 {[%clk 0:01:22.9]} 27. Bc2 {[%clk 0:00:03.2]} 27... Bg7 {[%clk 0:01:18.8]}
28. Bxf4 {[%clk 0:00:01.8]} 28... exf4 {[%clk 0:01:18]} 29. Ne4 {[%clk
0:00:02.7]} 29... h6 {[%clk 0:01:16.9]} 30. h4 {[%clk 0:00:02]} 30... Bd5 {[%clk
0:01:15]} 31. Ned2 {[%clk 0:00:01.9]} 31... Qd7 {[%clk 0:01:10.3]} 32. Qb1
{[%clk 0:00:02]} 32... h5 {[%clk 0:01:05.9]} 33. Ng5 {[%clk 0:00:01.8]} 33...
Bxg2 {[%clk 0:01:03.8]} 34. Kxg2 {[%clk 0:00:01.4]} 34... Qxd2 {[%clk
0:01:03.6]} 0-1

[Event "*** SCC Grand Prix: Titled Tuesday Blitz"]
[Site "Chess.com"]
[Date "2020.07.14"]
[Round "7"]
[White "Mischuk_D"]
[Black "ShimanovAlex"]
[Result "0-1"]
[WhiteElo "2644"]
[BlackElo "2821"]
[TimeControl "180+1"]
[EndTime "11:19:12 PDT"]
[Termination "ShimanovAlex won on time"]

1. e4 {[%clk 0:03:00.9]} 1... e6 {[%clk 0:02:58.7]} 2. d4 {[%clk 0:03:00.7]}
2... b6 {[%clk 0:02:57.8]} 3. Bd3 {[%clk 0:02:59.6]} 3... Bb7 {[%clk 0:02:58.3]}
4. Nf3 {[%clk 0:02:59.5]} 4... Nf6 {[%clk 0:02:57]} 5. Nbd2 {[%clk 0:02:59]}
5... d5 {[%clk 0:02:56.4]} 6. Qe2 {[%clk 0:02:56.8]} 6... c5 {[%clk 0:02:54.3]}
7. c3 {[%clk 0:02:54.4]} 7... Be7 {[%clk 0:02:53]} 8. O-O {[%clk 0:02:53.7]}
8... Nc6 {[%clk 0:02:51]} 9. dxc5 {[%clk 0:02:49.5]} 9... bxc5 {[%clk 0:02:49]}
10. exd5 {[%clk 0:02:40.5]} 10... exd5 {[%clk 0:02:48.6]} 11. Ba6 {[%clk
0:02:33.3]} 11... Bxa6 {[%clk 0:02:43.1]} 12. Qxa6 {[%clk 0:02:32.7]} 12... Qb6
{[%clk 0:02:44]} 13. Qd3 {[%clk 0:02:30.7]} 13... O-O {[%clk 0:02:43.3]} 14. c4
{[%clk 0:02:20.7]} 14... d4 {[%clk 0:02:39.9]} 15. Qf5 {[%clk 0:02:16.2]} 15...
g6 {[%clk 0:02:34.6]} 16. Qc2 {[%clk 0:02:07.5]} 16... Nb4 {[%clk 0:02:34.2]}
17. Qd1 {[%clk 0:02:07.6]} 17... Rfe8 {[%clk 0:02:30.8]} 18. Nb3 {[%clk
0:02:03.1]} 18... Bd6 {[%clk 0:02:29.9]} 19. Bd2 {[%clk 0:02:01.7]} 19... Nc6
{[%clk 0:02:30.1]} 20. Rb1 {[%clk 0:02:00.4]} 20... Qa6 {[%clk 0:02:28.7]} 21.
Qc2 {[%clk 0:01:56.1]} 21... Qa4 {[%clk 0:02:26.2]} 22. Nbxd4 {[%clk 0:01:49.6]}
22... Qxc2 {[%clk 0:02:17.5]} 23. Nxc2 {[%clk 0:01:50.5]} 23... Ne4 {[%clk
0:02:17.8]} 24. Be3 {[%clk 0:01:48.8]} 24... f5 {[%clk 0:02:17.4]} 25. g3 {[%clk
0:01:46.4]} 25... Rab8 {[%clk 0:02:14.3]} 26. Na3 {[%clk 0:01:35.2]} 26... a6
{[%clk 0:02:13.3]} 27. b3 {[%clk 0:01:29.3]} 27... Nb4 {[%clk 0:02:12.6]} 28.
Rb2 {[%clk 0:01:29.2]} 28... Bf8 {[%clk 0:02:11.1]} 29. Bd2 {[%clk 0:01:20.8]}
29... Bg7 {[%clk 0:02:10.3]} 30. Rbb1 {[%clk 0:01:18.6]} 30... Nxa2 {[%clk
0:02:10.2]} 31. Bf4 {[%clk 0:01:15.6]} 31... Rb7 {[%clk 0:02:07.8]} 32. Nd2
{[%clk 0:01:07.1]} 32... Nec3 {[%clk 0:02:01.8]} 33. Rbe1 {[%clk 0:01:05.2]}
33... Ne2+ {[%clk 0:01:46.8]} 34. Kh1 {[%clk 0:01:04.6]} 34... Nb4 {[%clk
0:01:43]} 35. Be3 {[%clk 0:00:58.6]} 35... Nd4 {[%clk 0:01:38.7]} 36. Bxd4
{[%clk 0:00:51.6]} 36... Rxe1 {[%clk 0:01:37.8]} 37. Rxe1 {[%clk 0:00:52.2]}
37... Bxd4 {[%clk 0:01:38.4]} 38. Kg2 {[%clk 0:00:52.4]} 38... Nd3 {[%clk
0:01:38.3]} 39. Re8+ {[%clk 0:00:36.8]} 39... Kf7 {[%clk 0:01:37.8]} 40. Ra8
{[%clk 0:00:37.7]} 40... Re7 {[%clk 0:01:35.4]} 41. Kf3 {[%clk 0:00:20.4]} 41...
Ne1+ {[%clk 0:01:28.3]} 42. Kf4 {[%clk 0:00:20.6]} 42... Bxf2 {[%clk 0:01:27.5]}
43. Nf1 {[%clk 0:00:16.4]} 43... Kg7 {[%clk 0:01:20.2]} 44. g4 {[%clk
0:00:15.3]} 44... Re4+ {[%clk 0:01:19.6]} 0-1

[Event "*** SCC Grand Prix: Titled Tuesday Blitz"]
[Site "Chess.com"]
[Date "2020.07.14"]
[Round "7"]
[White "nocnypako"]
[Black "Sam_ChessMood"]
[Result "0-1"]
[WhiteElo "2593"]
[BlackElo "2807"]
[TimeControl "180+1"]
[EndTime "11:19:13 PDT"]
[Termination "Sam_ChessMood won by resignation"]

1. d4 {[%clk 0:03:00.9]} 1... d5 {[%clk 0:02:59.5]} 2. c4 {[%clk 0:03:01.4]}
2... c6 {[%clk 0:02:59.9]} 3. Nc3 {[%clk 0:03:01.9]} 3... Nf6 {[%clk 0:02:59.6]}
4. Nf3 {[%clk 0:03:02.6]} 4... dxc4 {[%clk 0:02:59.1]} 5. a4 {[%clk 0:03:02.2]}
5... Bf5 {[%clk 0:02:58.9]} 6. Ne5 {[%clk 0:03:02.8]} 6... Nbd7 {[%clk
0:02:57.8]} 7. Nxc4 {[%clk 0:03:03.4]} 7... Nb6 {[%clk 0:02:58]} 8. Ne5 {[%clk
0:03:03.7]} 8... a5 {[%clk 0:02:58.1]} 9. Bg5 {[%clk 0:03:04.3]} 9... h6 {[%clk
0:02:50.8]} 10. Bh4 {[%clk 0:03:03.6]} 10... e6 {[%clk 0:02:45.3]} 11. e3 {[%clk
0:03:04.1]} 11... Bb4 {[%clk 0:02:44]} 12. Bd3 {[%clk 0:03:04.2]} 12... Bxd3
{[%clk 0:02:40.9]} 13. Qxd3 {[%clk 0:03:05.1]} 13... O-O {[%clk 0:02:37.7]} 14.
O-O {[%clk 0:03:05.6]} 14... Be7 {[%clk 0:02:37.8]} 15. Rfd1 {[%clk 0:03:05.1]}
15... Nfd5 {[%clk 0:02:36.4]} 16. Bxe7 {[%clk 0:03:04.7]} 16... Qxe7 {[%clk
0:02:36.8]} 17. h3 {[%clk 0:03:05.3]} 17... Rfd8 {[%clk 0:02:36]} 18. Qc2 {[%clk
0:03:04.3]} 18... Nd7 {[%clk 0:02:28.6]} 19. Nxd7 {[%clk 0:03:01.9]} 19... Qxd7
{[%clk 0:02:25.5]} 20. Nxd5 {[%clk 0:03:02.3]} 20... exd5 {[%clk 0:02:25.3]} 21.
Rac1 {[%clk 0:03:02.9]} 21... Re8 {[%clk 0:02:22.3]} 22. Qc5 {[%clk 0:03:03.1]}
22... Re6 {[%clk 0:02:20.5]} 23. Qc2 {[%clk 0:02:57.3]} 23... Rg6 {[%clk
0:02:20.1]} 24. Kh2 {[%clk 0:02:57.5]} 24... Re8 {[%clk 0:02:18.7]} 25. Qe2
{[%clk 0:02:56]} 25... Re4 {[%clk 0:02:08.8]} 26. Rb1 {[%clk 0:02:54.5]} 26...
f5 {[%clk 0:01:59.7]} 27. Qf3 {[%clk 0:02:53.5]} 27... Qd6+ {[%clk 0:01:54.5]}
28. Kh1 {[%clk 0:02:51.6]} 28... f4 {[%clk 0:01:54.8]} 29. exf4 {[%clk
0:02:42.6]} 29... Rxf4 {[%clk 0:01:54.6]} 30. Qe3 {[%clk 0:02:33.7]} 30... Re4
{[%clk 0:01:54.3]} 31. Qd2 {[%clk 0:02:32.8]} 31... Rf6 {[%clk 0:01:49.7]} 32.
f3 {[%clk 0:02:28.6]} 32... Re7 {[%clk 0:01:49.6]} 33. Re1 {[%clk 0:02:28.6]}
33... Rxe1+ {[%clk 0:01:16.8]} 34. Rxe1 {[%clk 0:02:29.5]} 34... Qf4 {[%clk
0:01:16.9]} 35. Qxf4 {[%clk 0:02:16.4]} 35... Rxf4 {[%clk 0:01:16.6]} 36. Rd1
{[%clk 0:02:17]} 36... Kf7 {[%clk 0:01:12.1]} 37. Kg1 {[%clk 0:02:17]} 37... Ke7
{[%clk 0:01:12.1]} 38. Kf2 {[%clk 0:02:16.6]} 38... Kd6 {[%clk 0:01:12.3]} 39.
g3 {[%clk 0:02:02.2]} 39... Rf8 {[%clk 0:01:12.2]} 40. f4 {[%clk 0:01:52.7]}
40... b6 {[%clk 0:01:12.5]} 41. Kf3 {[%clk 0:01:41.3]} 41... c5 {[%clk
0:01:12.3]} 42. g4 {[%clk 0:01:39]} 42... Re8 {[%clk 0:01:10]} 43. h4 {[%clk
0:01:36.1]} 43... Re4 {[%clk 0:01:09.5]} 44. h5 {[%clk 0:01:35.5]} 44... cxd4
{[%clk 0:01:05.5]} 45. Rd3 {[%clk 0:01:28.9]} 45... Kc5 {[%clk 0:00:59.1]} 46.
Rb3 {[%clk 0:01:02.1]} 46... Kc4 {[%clk 0:00:56.2]} 47. Rxb6 {[%clk 0:01:00.5]}
47... d3 {[%clk 0:00:56.5]} 48. Rc6+ {[%clk 0:00:40.2]} 48... Kd4 {[%clk
0:00:55.7]} 49. Rc1 {[%clk 0:00:35.9]} 49... d2 {[%clk 0:00:55.9]} 50. Rd1
{[%clk 0:00:36.6]} 50... Kd3 {[%clk 0:00:56.1]} 0-1

[Event "*** SCC Grand Prix: Titled Tuesday Blitz"]
[Site "Chess.com"]
[Date "2020.07.14"]
[Round "7"]
[White "JiiHart"]
[Black "DrVitman"]
[Result "0-1"]
[WhiteElo "2094"]
[BlackElo "2468"]
[TimeControl "180+1"]
[EndTime "11:19:17 PDT"]
[Termination "DrVitman won on time"]

1. e4 {[%clk 0:03:00.9]} 1... c5 {[%clk 0:02:58.3]} 2. Nf3 {[%clk 0:03:00.7]}
2... a6 {[%clk 0:02:58.1]} 3. g3 {[%clk 0:02:59.2]} 3... g6 {[%clk 0:02:55.1]}
4. Bg2 {[%clk 0:02:58.9]} 4... Bg7 {[%clk 0:02:55.4]} 5. d4 {[%clk 0:02:58.4]}
5... cxd4 {[%clk 0:02:53.4]} 6. Nxd4 {[%clk 0:02:58.5]} 6... Nc6 {[%clk
0:02:48]} 7. Be3 {[%clk 0:02:57.2]} 7... d6 {[%clk 0:02:43.2]} 8. Nc3 {[%clk
0:02:55.5]} 8... Nf6 {[%clk 0:02:42.6]} 9. Nxc6 {[%clk 0:02:28.5]} 9... bxc6
{[%clk 0:02:41.7]} 10. e5 {[%clk 0:02:27.6]} 10... Nd5 {[%clk 0:02:18.7]} 11.
Nxd5 {[%clk 0:02:23.4]} 11... cxd5 {[%clk 0:02:18.5]} 12. Bxd5 {[%clk
0:01:49.4]} 12... Rb8 {[%clk 0:02:17.5]} 13. Bb3 {[%clk 0:01:23.4]} 13... Bxe5
{[%clk 0:02:14.2]} 14. Bd4 {[%clk 0:01:04.7]} 14... Bxd4 {[%clk 0:02:13.1]} 15.
Qxd4 {[%clk 0:01:04.3]} 15... O-O {[%clk 0:02:13.4]} 16. O-O {[%clk 0:01:03.8]}
16... Bb7 {[%clk 0:02:01]} 17. Rfd1 {[%clk 0:00:53.6]} 17... Qc7 {[%clk
0:01:45.9]} 18. Rab1 {[%clk 0:00:49.5]} 18... Rfd8 {[%clk 0:01:41.2]} 19. Bd5
{[%clk 0:00:25]} 19... Bxd5 {[%clk 0:01:38.1]} 20. Qxd5 {[%clk 0:00:25.4]} 20...
Qxc2 {[%clk 0:01:37.8]} 21. Rdc1 {[%clk 0:00:25.5]} 21... Qa4 {[%clk 0:01:34]}
22. Rc7 {[%clk 0:00:20.2]} 22... e6 {[%clk 0:01:30.7]} 23. Qd2 {[%clk
0:00:13.8]} 23... Qxa2 {[%clk 0:01:28.9]} 24. Rbc1 {[%clk 0:00:12.5]} 24... Qxb2
{[%clk 0:01:24.9]} 25. Qf4 {[%clk 0:00:12.5]} 25... Rf8 {[%clk 0:01:21.1]} 26.
Ra7 {[%clk 0:00:11.8]} 26... Ra8 {[%clk 0:01:08.8]} 27. Rxa8 {[%clk 0:00:10.8]}
27... Rxa8 {[%clk 0:01:07.6]} 28. Rc7 {[%clk 0:00:10.9]} 28... Rf8 {[%clk
0:01:06.3]} 29. Qxd6 {[%clk 0:00:10.7]} 29... a5 {[%clk 0:01:05.6]} 30. Ra7
{[%clk 0:00:10.5]} 30... Qb1+ {[%clk 0:00:57.3]} 31. Kg2 {[%clk 0:00:09.4]}
31... Qe4+ {[%clk 0:00:56.7]} 32. Kg1 {[%clk 0:00:06.7]} 32... Ra8 {[%clk
0:00:55.8]} 33. Rxa8+ {[%clk 0:00:03.7]} 33... Qxa8 {[%clk 0:00:55.2]} 34. Qa3
{[%clk 0:00:03.7]} 34... a4 {[%clk 0:00:55]} 35. Kf1 {[%clk 0:00:02.1]} 35...
Qa5 {[%clk 0:00:55.2]} 36. Ke2 {[%clk 0:00:01.7]} 36... Qb5+ {[%clk 0:00:55.3]}
37. Kd2 {[%clk 0:00:01.3]} 37... Kg7 {[%clk 0:00:54.9]} 0-1

[Event "*** SCC Grand Prix: Titled Tuesday Blitz"]
[Site "Chess.com"]
[Date "2020.07.14"]
[Round "7"]
[White "zmeeed67"]
[Black "jonychess03"]
[Result "0-1"]
[WhiteElo "2416"]
[BlackElo "2314"]
[TimeControl "180+1"]
[EndTime "11:19:20 PDT"]
[Termination "jonychess03 won by resignation"]

1. d4 {[%clk 0:03:00.9]} 1... Nf6 {[%clk 0:02:59.2]} 2. c4 {[%clk 0:03:01.5]}
2... e6 {[%clk 0:02:59.4]} 3. Nc3 {[%clk 0:03:01.8]} 3... Bb4 {[%clk 0:02:59.4]}
4. f3 {[%clk 0:03:01.5]} 4... d5 {[%clk 0:02:58.1]} 5. a3 {[%clk 0:03:01.4]}
5... Bxc3+ {[%clk 0:02:58.1]} 6. bxc3 {[%clk 0:03:02.1]} 6... O-O {[%clk
0:02:57.7]} 7. cxd5 {[%clk 0:03:02.3]} 7... exd5 {[%clk 0:02:57.5]} 8. e3 {[%clk
0:03:02.6]} 8... c5 {[%clk 0:02:57.5]} 9. Bd3 {[%clk 0:03:02.7]} 9... Nc6 {[%clk
0:02:57.6]} 10. Ne2 {[%clk 0:03:03.1]} 10... Re8 {[%clk 0:02:57.8]} 11. O-O
{[%clk 0:03:03.4]} 11... b6 {[%clk 0:02:56.5]} 12. Ng3 {[%clk 0:03:02.9]} 12...
cxd4 {[%clk 0:02:54.9]} 13. cxd4 {[%clk 0:03:02.2]} 13... Bb7 {[%clk 0:02:54.8]}
14. Ra2 {[%clk 0:03:02.5]} 14... Na5 {[%clk 0:02:54.8]} 15. Bb1 {[%clk
0:03:00.4]} 15... Nc4 {[%clk 0:02:52.7]} 16. Re1 {[%clk 0:02:36.8]} 16... Nd6
{[%clk 0:02:51.6]} 17. Rae2 {[%clk 0:02:22.4]} 17... Ba6 {[%clk 0:02:51.1]} 18.
Bd3 {[%clk 0:02:22.2]} 18... Bxd3 {[%clk 0:02:49.5]} 19. Qxd3 {[%clk 0:02:23.1]}
19... Rc8 {[%clk 0:02:36.6]} 20. e4 {[%clk 0:02:22.6]} 20... dxe4 {[%clk
0:02:37]} 21. fxe4 {[%clk 0:02:23]} 21... Nc4 {[%clk 0:02:32.2]} 22. Rf1 {[%clk
0:01:32.4]} 22... Qd7 {[%clk 0:02:27.6]} 23. Rxf6 {[%clk 0:01:22.8]} 23... gxf6
{[%clk 0:02:27]} 24. Nf5 {[%clk 0:01:22.9]} 24... Ne5 {[%clk 0:02:21.1]} 25.
Qg3+ {[%clk 0:01:17.5]} 25... Ng6 {[%clk 0:02:21.2]} 26. Bd2 {[%clk 0:00:40]}
26... Kh8 {[%clk 0:01:54.6]} 27. h4 {[%clk 0:00:38.4]} 27... Rxe4 {[%clk
0:01:50.9]} 28. Rf2 {[%clk 0:00:28]} 28... h5 {[%clk 0:00:55.3]} 29. Bh6 {[%clk
0:00:21.8]} 29... Rg4 {[%clk 0:00:47.3]} 30. Qe3 {[%clk 0:00:21.7]} 30... Re8
{[%clk 0:00:41.3]} 31. Bg7+ {[%clk 0:00:21.7]} 31... Kg8 {[%clk 0:00:39.5]} 32.
Qh6 {[%clk 0:00:20.8]} 32... Re1+ {[%clk 0:00:32.8]} 33. Rf1 {[%clk 0:00:15.1]}
33... Rxf1+ {[%clk 0:00:32]} 34. Kxf1 {[%clk 0:00:14.3]} 34... Qxf5+ {[%clk
0:00:32.3]} 0-1

[Event "*** SCC Grand Prix: Titled Tuesday Blitz"]
[Site "Chess.com"]
[Date "2020.07.14"]
[Round "7"]
[White "Ucitelot"]
[Black "XDPS"]
[Result "0-1"]
[WhiteElo "2504"]
[BlackElo "2687"]
[TimeControl "180+1"]
[EndTime "11:19:21 PDT"]
[Termination "XDPS won by resignation"]

1. e4 {[%clk 0:03:00.1]} 1... c5 {[%clk 0:02:55.7]} 2. Nf3 {[%clk 0:02:59.8]}
2... d6 {[%clk 0:02:55.5]} 3. d4 {[%clk 0:02:59.9]} 3... cxd4 {[%clk 0:02:55.5]}
4. Nxd4 {[%clk 0:03:00.7]} 4... Nf6 {[%clk 0:02:56]} 5. Nc3 {[%clk 0:03:00.5]}
5... a6 {[%clk 0:02:56.2]} 6. g3 {[%clk 0:02:59.9]} 6... g6 {[%clk 0:02:53.3]}
7. Bg2 {[%clk 0:02:58.8]} 7... Bg7 {[%clk 0:02:54]} 8. O-O {[%clk 0:02:58.4]}
8... O-O {[%clk 0:02:54.5]} 9. h3 {[%clk 0:02:58.2]} 9... Nc6 {[%clk 0:02:49.8]}
10. Nde2 {[%clk 0:02:57.4]} 10... Rb8 {[%clk 0:02:47.1]} 11. a4 {[%clk
0:02:56.8]} 11... b5 {[%clk 0:02:45]} 12. axb5 {[%clk 0:02:57]} 12... axb5
{[%clk 0:02:45.9]} 13. Nd5 {[%clk 0:02:56.3]} 13... Nxd5 {[%clk 0:02:43.9]} 14.
exd5 {[%clk 0:02:55.9]} 14... Ne5 {[%clk 0:02:44.2]} 15. Nd4 {[%clk 0:02:46.6]}
15... Bd7 {[%clk 0:02:25.1]} 16. Re1 {[%clk 0:02:44.3]} 16... Re8 {[%clk
0:02:22.1]} 17. c3 {[%clk 0:02:42.9]} 17... Qc7 {[%clk 0:02:14.2]} 18. Kh2
{[%clk 0:02:33.5]} 18... b4 {[%clk 0:01:51.4]} 19. f4 {[%clk 0:02:09.1]} 19...
Nc4 {[%clk 0:01:50.7]} 20. Nc6 {[%clk 0:01:59.9]} 20... Bxc6 {[%clk 0:01:48.4]}
21. dxc6 {[%clk 0:02:00.8]} 21... bxc3 {[%clk 0:01:48.9]} 22. bxc3 {[%clk
0:01:47.5]} 22... e6 {[%clk 0:01:47]} 23. Qd3 {[%clk 0:01:38.2]} 23... d5 {[%clk
0:01:44.4]} 24. Ra6 {[%clk 0:01:36.9]} 24... Qc8 {[%clk 0:01:35.2]} 25. Bxd5
{[%clk 0:00:46.8]} 25... exd5 {[%clk 0:01:30.3]} 26. Rxe8+ {[%clk 0:00:45.8]}
26... Qxe8 {[%clk 0:01:29.2]} 27. c7 {[%clk 0:00:30]} 27... Rc8 {[%clk 0:01:18]}
28. Qxd5 {[%clk 0:00:29.4]} 28... Rxc7 {[%clk 0:00:59.2]} 29. Ra8 {[%clk
0:00:26.9]} 29... Rc8 {[%clk 0:00:59.2]} 30. Ra7 {[%clk 0:00:12.4]} 30... Qe2+
{[%clk 0:00:33.6]} 31. Kh1 {[%clk 0:00:12]} 31... Qf1+ {[%clk 0:00:32.1]} 32.
Kh2 {[%clk 0:00:11.8]} 32... Qf2+ {[%clk 0:00:32.6]} 33. Kh1 {[%clk 0:00:11.8]}
33... Qxa7 {[%clk 0:00:33]} 0-1